lending/lending_fUSD_20250131
["ID","MTS","AMOUNT","RATE_DAILY","PERIOD"]
[351022166,1738296897278,182.13,0.00010137,2]
[351022168,1738297508210,2334389.52116344,0.00012,2]
[351022171,1738297609130,-198.19565884,0.00015745,2]
[351022172,1738297678393,1232.18908152,0.0001,2]
[351022173,1738297682153,1813204.39032252,0.0001,2]
[351022177,1738297747092,-235.17434116,0.00015745,2]
[351022178,1738297747119,-150.0,0.00016272,2]
[351022179,1738297747141,-938.23759663,0.000168,2]
[351022194,1738297832068,-300.0,0.00017319,2]
[351022196,1738297832079,-121.857238,0.00017319,2]
[351022198,1738297832092,-28.142762,0.00017319,2]
[351022200,1738297832103,-150.0,0.00017319,2]
[351022201,1738297832113,-162.04,0.00017415,2]
[351022202,1738297832122,-186.28849728,0.00017563,2]
[351022203,1738297832132,-812.20490714,0.00017572,2]
[351022204,1738297832142,-280.1,0.00017572,2]
[351022205,1738297832151,-1000.0,0.00017577,2]
[351022206,1738297832162,-300.0,0.00017662,2]
[351022207,1738297832177,-20907.86,0.00017663,2]
[351022208,1738297832187,-300.0,0.00017897,2]
[351022209,1738297832197,-177.96,0.00017898,2]
[351022210,1738297832206,-150.99,0.00017898,2]
[351022211,1738297832216,-9999.99,0.00017898,2]
[351022212,1738297832226,-6517.86,0.00017898,2]
[351022213,1738297832237,-999.99,0.00017898,2]
[351022214,1738297832247,-150.99,0.00017898,2]
[351022215,1738297832257,-414.99,0.00017898,2]
[351022216,1738297832266,-113636.76,0.00017898,2]
[351022217,1738297832276,-1316.14,0.00017898,2]
[351022218,1738297832286,-458.37,0.0001791,2]
[351022219,1738297832302,-151.05,0.0001793,30]
[351022220,1738297832312,-584.6,0.00018,2]
[351022221,1738297832322,-1000.0,0.00018,2]
[351022222,1738297832332,-1000.0,0.00018,2]
[351022223,1738297832341,-1000.0,0.00018,2]
[351022224,1738297832352,-1000.0,0.00018,2]
[351022225,1738297832362,-1508.0,0.00018,2]
[351022226,1738297832371,-277.55925517,0.00018,2]
[351022227,1738297832381,-433.37,0.00018009,2]
[351022228,1738297832391,-765.93,0.00018041,2]
[351022229,1738297832401,-439.19,0.000181,2]
[351022230,1738297832411,-400.4034795,0.00018134,2]
[351022231,1738297832421,-439.19,0.000183,2]
[351022232,1738297832430,-301.32,0.000183,2]
[351022233,1738297832440,-1735.2201,0.00018319,2]
[351022234,1738297832450,-2805.22356,0.0001833,2]
[351022235,1738297832460,-1103.0,0.000185,2]
[351022236,1738297832470,-331.32613236,0.00018518,2]
[351022237,1738297832480,-740.237,0.00018519,2]
[351022238,1738297832491,-9522.44040984,0.0001852,2]
[351022239,1738297832505,-12948.24567784,0.0001852,2]
[351022240,1738297832526,-3614.97335,0.0001852,2]
[351022241,1738297832539,-2784.56454771,0.0001852,2]
[351022243,1738297832560,-9877.4903166,0.0001852,2]
[351022246,1738297832572,-2084.09225182,0.0001852,2]
[351022299,1738297832937,-4826.21183776,0.0001852,2]
[351022304,1738297832950,-23734.41187244,0.0001852,2]
[351022306,1738297832963,-1108.6,0.000186,2]
[351022308,1738297832972,-438.27,0.000186,2]
[351022310,1738297832982,-150.0,0.000186,2]
[351022312,1738297832991,-462.81,0.000186,2]
[351022314,1738297833001,-151.51,0.000186,2]
[351022316,1738297833010,-150.0,0.000186,2]
[351022318,1738297833019,-439.19,0.000186,2]
[351022320,1738297833028,-708.08369941,0.00018744,2]
[351022322,1738297833039,-1000.0,0.00018773,2]
[351022324,1738297833049,-193.93,0.0001879,2]
[351022326,1738297833059,-30905.94220521,0.000188,2]
[351022328,1738297833069,-43646.74132392,0.000188,2]
[351022330,1738297833085,-3846.03057505,0.000188,2]
[351022332,1738297833094,-1000.0,0.00018857,2]
[351022335,1738297833104,-150.0,0.00018864,2]
[351022338,1738297833114,-282.28676536,0.00018869,2]
[351022341,1738297833124,-156.43705954,0.00018877,2]
[351022343,1738297833134,-189.66,0.000189,2]
[351022346,1738297833144,-150.82206092,0.00018904,2]
[351022348,1738297833154,-363.66335462,0.00018912,2]
[351022350,1738297833163,-500.0,0.00018961,2]
[351022351,1738297833173,-150.0,0.00018992,2]
[351022354,1738297833183,-300.94562678,0.00019,2]
[351022356,1738297833194,-499.93143337,0.00019,2]
[351022358,1738297833203,-262.2439888,0.00019,2]
[351022360,1738297833224,-255.44807906,0.00019,2]
[351022361,1738297833236,-482.30793214,0.00019,2]
[351022362,1738297833246,-68.32059522,0.00019009,2]
[351022363,1738297833257,-931.67940478,0.00019009,2]
[351022364,1738297833267,-150.0,0.0001901,2]
[351022365,1738297833277,-724.803,0.00019023,2]
[351022366,1738297833286,-213.127,0.00019023,2]
[351022367,1738297833295,-570.382,0.00019023,2]
[351022368,1738297833305,-123.11356722,0.00019023,2]
[351022369,1738297833331,-72.12343278,0.00019023,2]
[351022370,1738297833341,-217.41256935,0.00019023,2]
[351022382,1738297837939,-318.96298688,0.00019023,2]
[351022385,1738297837999,-1330.62444377,0.00019023,2]
[351022386,1738297838010,-782.0,0.00019023,2]
[351022387,1738297838021,-3057.715,0.00019023,2]
[351022388,1738297838031,-1263.0,0.00019023,2]
[351022389,1738297838041,-907.0,0.00019023,2]
[351022390,1738297838051,-538.0,0.00019023,2]
[351022391,1738297838062,-150.0,0.00019023,2]
[351022392,1738297838072,-2021.0,0.00019023,2]
[351022393,1738297838081,-151.69,0.00019023,2]
[351022394,1738297838091,-3908.0,0.00019023,2]
[351022395,1738297838102,-1271.0,0.00019023,2]
[351022396,1738297838111,-150.0,0.00019023,2]
[351022397,1738297838121,-150.0,0.00019036,2]
[351022398,1738297838131,-1000.0,0.00019036,2]
[351022399,1738297838143,-500.0,0.0001904,3]
[351022400,1738297838154,-151.06756464,0.00019051,2]
[351022401,1738297838166,-150.0,0.00019051,2]
[351022402,1738297838176,-500.0,0.00019061,2]
[351022403,1738297838187,-3172.93936048,0.00019064,2]
[351022404,1738297838196,-2991.09931899,0.00019076,3]
[351022405,1738297838207,-159.98619384,0.00019078,2]
[351022406,1738297838216,-151.68311649,0.00019078,2]
[351022407,1738297838226,-862.43529604,0.00019078,2]
[351022408,1738297838235,-150.0,0.00019079,2]
[351022409,1738297838245,-800.38060283,0.000191,3]
[351022410,1738297838254,-2309.0352652,0.00019101,2]
[351022411,1738297838263,-1284.0535022,0.00019101,2]
[351022412,1738297838273,-734.5833486,0.00019101,2]
[351022413,1738297838283,-55687.84488743,0.00019102,3]
[351022414,1738297838298,-499.19774438,0.00019102,3]
[351022417,1738297838310,-1072.35,0.00019102,3]
[351022419,1738297838322,-10591.17998013,0.00019102,3]
[351022422,1738297838338,-8897.33288894,0.00019102,3]
[351022424,1738297838349,-18634.54195418,0.00019102,3]
[351022426,1738297838361,-10563.07437962,0.00019102,3]
[351022430,1738297838388,-811.351313,0.00019102,3]
[351022432,1738297838401,-104372.0634475,0.00019102,3]
[351022435,1738297838413,-9763.4,0.00019102,3]
[351022438,1738297838437,-16131.68368021,0.00019102,3]
[351022622,1738297840162,-1038.55,0.00019102,3]
[351022625,1738297840175,-3002.84950921,0.00019102,3]
[351022631,1738297840219,-785.83533901,0.00019102,3]
[351022638,1738297840277,-619.9049794,0.00019102,3]
[351022640,1738297840289,-5098.9022236,0.00019102,3]
[351022642,1738297840301,-798.3686979,0.00019102,3]
[351022644,1738297840312,-490.92951006,0.00019102,3]
[351022647,1738297840324,-944.170426,0.00019102,3]
[351022649,1738297840340,-11401.6306497,0.00019102,3]
[351022898,1738297843061,-776.136,0.00019023,2]
[351022900,1738297843073,-2646.36822296,0.00019102,3]
[351022903,1738297843090,-2494.99999999,0.00019102,3]
[351022905,1738297843104,-522.45,0.00019102,3]
[351022907,1738297843125,-324684.03199984,0.00019102,3]
[351022909,1738297843135,-42878.21321427,0.00019107,3]
[351022910,1738297843147,-11905.07124661,0.00019108,3]
[351022911,1738297843158,-2412.5904366,0.00019114,2]
[351022912,1738297843168,-580.69612597,0.00019116,3]
[351022913,1738297843179,-862.43529604,0.00019118,2]
[351022914,1738297843190,-42878.21321427,0.00019119,3]
[351022915,1738297843201,-2991.09931899,0.00019126,3]
[351022916,1738297843211,-999.70856941,0.00019128,3]
[351022917,1738297843221,-999.70856941,0.00019129,3]
[351022918,1738297843231,-11905.07124661,0.00019129,3]
[351022920,1738297843241,-11905.07124661,0.0001913,3]
[351022922,1738297843251,-11913.76704624,0.0001913,3]
[351022924,1738297843262,-1291.56233355,0.00019135,3]
[351022926,1738297843271,-3172.93936045,0.00019142,2]
[351022928,1738297843282,-615967.11608107,0.00019144,3]
[351022930,1738297843292,-999.70856941,0.00019146,3]
[351022932,1738297843302,-26725.62672754,0.00019153,3]
[351022934,1738297843311,-862.43529604,0.00019157,2]
[351022936,1738297843321,-580.69612597,0.00019157,3]
[351022938,1738297843331,-500.0,0.00019161,2]
[351022940,1738297843340,-200.0,0.00019161,3]
[351022942,1738297843349,-500.0,0.00019164,2]
[351022944,1738297843360,-700.0,0.00019164,2]
[351022945,1738297843370,-500.0,0.00019164,2]
[351022947,1738297843380,-500.0,0.00019164,2]
[351022950,1738297843390,-500.0,0.00019164,2]
[351022951,1738297843400,-500.0,0.00019164,2]
[351022953,1738297843410,-500.0,0.00019164,2]
[351022955,1738297843419,-500.0,0.00019164,2]
[351022957,1738297843429,-500.0,0.00019164,2]
[351022959,1738297843439,-500.0,0.00019164,2]
[351022961,1738297843448,-500.0,0.00019164,2]
[351022963,1738297843457,-500.0,0.00019164,2]
[351022965,1738297843468,-500.0,0.00019164,2]
[351022967,1738297843477,-500.0,0.00019164,2]
[351022969,1738297843487,-500.0,0.00019164,2]
[351022971,1738297843497,-500.0,0.00019164,2]
[351022973,1738297843507,-500.0,0.00019164,2]
[351022975,1738297843517,-500.0,0.00019164,2]
[351022977,1738297843527,-500.0,0.00019164,2]
[351022979,1738297843536,-500.0,0.00019164,2]
[351022981,1738297843545,-500.0,0.00019164,2]
[351022983,1738297843555,-500.0,0.00019164,2]
[351022985,1738297843564,-500.0,0.00019164,2]
[351022987,1738297843574,-500.0,0.00019164,2]
[351022989,1738297843584,-500.0,0.00019164,2]
[351022992,1738297843594,-500.0,0.00019164,2]
[351022993,1738297843604,-500.0,0.00019164,2]
[351022996,1738297843614,-500.0,0.00019164,2]
[351022997,1738297843624,-500.0,0.00019164,2]
[351023001,1738297843634,-500.0,0.00019164,2]
[351023004,1738297843643,-500.0,0.00019164,2]
[351023006,1738297843652,-500.0,0.00019164,2]
[351023008,1738297843661,-500.0,0.00019164,2]
[351023010,1738297843671,-500.0,0.00019164,2]
[351023012,1738297843681,-500.0,0.00019164,2]
[351023014,1738297843690,-500.0,0.00019164,2]
[351023016,1738297843700,-500.0,0.00019164,2]
[351023018,1738297843709,-500.0,0.00019164,2]
[351023020,1738297843718,-500.0,0.00019164,2]
[351023022,1738297843739,-500.0,0.00019164,2]
[351023023,1738297843748,-500.0,0.00019164,2]
[351023025,1738297843757,-500.0,0.00019164,2]
[351023027,1738297843767,-500.0,0.00019164,2]
[351023029,1738297843776,-500.0,0.00019164,2]
[351023031,1738297843787,-500.0,0.00019164,2]
[351023033,1738297843797,-500.0,0.00019164,2]
[351023035,1738297843807,-500.0,0.00019164,2]
[351023037,1738297843817,-500.0,0.00019164,2]
[351023039,1738297843826,-500.0,0.00019164,2]
[351023041,1738297843836,-500.0,0.00019164,2]
[351023042,1738297843846,-500.0,0.00019164,2]
[351023043,1738297843856,-500.0,0.00019164,2]
[351023044,1738297843866,-500.0,0.00019164,2]
[351023046,1738297843876,-500.0,0.00019164,2]
[351023048,1738297843886,-500.0,0.00019164,2]
[351023050,1738297843896,-500.0,0.00019164,2]
[351023052,1738297843906,-500.0,0.00019164,2]
[351023054,1738297843915,-500.0,0.00019164,2]
[351023056,1738297843926,-500.0,0.00019164,2]
[351023058,1738297843936,-500.0,0.00019164,2]
[351023060,1738297843945,-500.0,0.00019164,2]
[351023062,1738297843960,-500.0,0.00019164,2]
[351023064,1738297843969,-500.0,0.00019164,2]
[351023066,1738297843978,-500.0,0.00019164,2]
[351023068,1738297843988,-500.0,0.00019164,2]
[351023070,1738297843998,-500.0,0.00019164,2]
[351023072,1738297844008,-500.0,0.00019164,2]
[351023074,1738297844017,-500.0,0.00019164,2]
[351023076,1738297844027,-500.0,0.00019164,2]
[351023078,1738297844036,-500.0,0.00019164,2]
[351023080,1738297844046,-500.0,0.00019164,2]
[351023082,1738297844055,-500.0,0.00019164,2]
[351023084,1738297844065,-500.0,0.00019164,2]
[351023086,1738297844074,-500.0,0.00019164,2]
[351023088,1738297844084,-500.0,0.00019164,2]
[351023090,1738297844093,-500.0,0.00019164,2]
[351023092,1738297844105,-500.0,0.00019164,2]
[351023094,1738297844114,-500.0,0.00019164,2]
[351023096,1738297844124,-500.0,0.00019164,2]
[351023098,1738297844134,-500.0,0.00019164,2]
[351023100,1738297844143,-500.0,0.00019164,2]
[351023102,1738297844153,-500.0,0.00019164,2]
[351023104,1738297844163,-500.0,0.00019164,2]
[351023106,1738297844172,-500.0,0.00019164,2]
[351023108,1738297844181,-500.0,0.00019164,2]
[351023110,1738297844191,-500.0,0.00019164,2]
[351023112,1738297844201,-500.0,0.00019164,2]
[351023114,1738297844210,-500.0,0.00019164,2]
[351023116,1738297844220,-500.0,0.00019164,2]
[351023118,1738297844229,-500.0,0.00019164,2]
[351023120,1738297844239,-500.0,0.00019164,2]
[351023122,1738297844247,-500.0,0.00019164,2]
[351023124,1738297844257,-500.0,0.00019164,2]
[351023126,1738297844266,-500.0,0.00019164,2]
[351023128,1738297844275,-500.0,0.00019164,2]
[351023130,1738297844285,-500.0,0.00019164,2]
[351023132,1738297844295,-500.0,0.00019164,2]
[351023134,1738297844306,-500.0,0.00019164,2]
[351023136,1738297844315,-500.0,0.00019164,2]
[351023138,1738297844326,-500.0,0.00019164,2]
[351023140,1738297844335,-500.0,0.00019164,2]
[351023142,1738297844345,-500.0,0.00019164,2]
[351023144,1738297844355,-500.0,0.00019164,2]
[351023146,1738297844364,-500.0,0.00019164,2]
[351023149,1738297844374,-500.0,0.00019164,2]
[351023151,1738297844383,-981.0,0.00019164,2]
[351023153,1738297844393,-296.89346659,0.00019168,2]
[351023154,1738297844403,-633.8417165,0.0001917,7]
[351023156,1738297844413,-979.45079562,0.0001917,2]
[351023159,1738297844423,-500.0,0.0001917,2]
[351023161,1738297844432,-500.0,0.00019173,2]
[351023163,1738297844441,-999.0,0.00019177,2]
[351023165,1738297844451,-5000.0,0.00019177,4]
[351023167,1738297844460,-1291.56233355,0.00019177,3]
[351023169,1738297844470,-962.0,0.00019178,2]
[351023171,1738297844479,-513.11278588,0.00019178,2]
[351023173,1738297844488,-502.70812635,0.00019178,2]
[351023175,1738297844498,-507.05802452,0.00019178,2]
[351023177,1738297844507,-510.05533238,0.00019178,2]
[351023179,1738297844517,-636.81848882,0.00019178,2]
[351023181,1738297844526,-506.90171125,0.00019178,2]
[351023183,1738297844536,-501.72286451,0.00019178,2]
[351023185,1738297844545,-500.0,0.00019178,2]
[351023187,1738297844556,-519.88475555,0.00019178,2]
[351023189,1738297844566,-609.91,0.00019178,2]
[351023191,1738297844576,-508.88473391,0.00019178,2]
[351023193,1738297844586,-540.55,0.00019178,2]
[351023195,1738297844595,-500.0,0.00019178,2]
[351023197,1738297844605,-246.19556299,0.00019178,2]
[351023199,1738297844614,-538.92602015,0.00019178,2]
[351023201,1738297844623,-500.0,0.00019178,2]
[351023203,1738297844633,-500.0,0.00019178,2]
[351023205,1738297844642,-503.30223172,0.00019178,2]
[351023207,1738297844652,-500.0,0.00019178,2]
[351023209,1738297844661,-593.97569819,0.00019178,2]
[351023211,1738297844671,-500.0,0.00019178,2]
[351023213,1738297844681,-500.0,0.00019178,2]
[351023215,1738297844691,-513.3420034,0.00019178,2]
[351023217,1738297844701,-500.0,0.00019178,2]
[351023218,1738297844711,-500.0,0.00019178,2]
[351023220,1738297844721,-500.0,0.00019178,2]
[351023222,1738297844731,-500.0,0.00019178,2]
[351023224,1738297844740,-519.35841809,0.00019178,2]
[351023226,1738297844750,-500.0,0.00019178,2]
[351023228,1738297844760,-500.0,0.00019178,2]
[351023230,1738297844769,-637.71165403,0.00019178,2]
[351023232,1738297844778,-502.10700524,0.00019178,2]
[351023234,1738297844788,-500.0,0.00019178,2]
[351023236,1738297844798,-500.0,0.00019178,2]
[351023238,1738297844808,-502.55037811,0.00019178,2]
[351023240,1738297844817,-500.0,0.00019178,2]
[351023242,1738297844827,-528.90300507,0.00019178,2]
[351023244,1738297844836,-500.0,0.00019178,2]
[351023246,1738297844846,-500.0,0.00019178,2]
[351023248,1738297844856,-500.0,0.00019178,2]
[351023250,1738297844865,-529.04182299,0.00019178,2]
[351023252,1738297844875,-515.48312517,0.00019178,2]
[351023254,1738297844884,-1147.04,0.00019178,2]
[351023256,1738297844894,-500.0,0.00019178,2]
[351023258,1738297844903,-520.496793,0.00019178,2]
[351023260,1738297844912,-512.20659654,0.00019178,2]
[351023262,1738297844922,-513.68372705,0.00019178,2]
[351023264,1738297844934,-500.0,0.00019178,2]
[351023266,1738297844943,-500.0,0.00019178,2]
[351023268,1738297844956,-521.18708762,0.00019178,2]
[351023270,1738297844966,-500.0,0.00019178,2]
[351023272,1738297844976,-500.0,0.00019178,2]
[351023274,1738297844985,-509.26,0.00019178,2]
[351023276,1738297844997,-633.32,0.00019178,2]
[351023278,1738297845006,-761.43,0.00019178,2]
[351023280,1738297845016,-500.0,0.00019178,2]
[351023282,1738297845026,-518.48098132,0.00019178,2]
[351023284,1738297845036,-510.71652551,0.00019178,2]
[351023286,1738297845046,-636.77,0.00019178,2]
[351023288,1738297845055,-500.0,0.00019178,2]
[351023290,1738297845066,-500.0,0.00019178,2]
[351023292,1738297845077,-500.0,0.00019178,2]
[351023294,1738297845086,-504.12304116,0.00019178,2]
[351023296,1738297845096,-506.14897756,0.00019178,2]
[351023298,1738297845106,-675.65,0.00019178,2]
[351023300,1738297845115,-500.0,0.00019178,2]
[351023302,1738297845125,-537.25674498,0.00019178,2]
[351023304,1738297845135,-500.0,0.00019178,2]
[351023306,1738297845144,-500.0,0.00019178,2]
[351023308,1738297845153,-500.0,0.00019178,2]
[351023310,1738297845163,-512.49828606,0.00019178,2]
[351023312,1738297845172,-510.93891624,0.00019178,2]
[351023314,1738297845182,-508.5385708,0.00019178,2]
[351023316,1738297845191,-525.2085206,0.00019178,2]
[351023318,1738297845201,-500.0,0.00019178,2]
[351023320,1738297845210,-541.44286212,0.00019178,2]
[351023322,1738297845220,-500.0,0.00019178,2]
[351023324,1738297845229,-500.0,0.00019178,2]
[351023326,1738297845238,-500.0,0.00019178,2]
[351023327,1738297845248,-500.0,0.00019178,2]
[351023330,1738297845258,-496.97072951,0.00019178,2]
[351023332,1738297845268,-519.14075884,0.00019178,2]
[351023334,1738297845278,-506.12183209,0.00019178,2]
[351023336,1738297845287,-500.0,0.00019178,2]
[351023338,1738297845297,-826.84,0.00019178,2]
[351023340,1738297845307,-513.63713373,0.00019178,2]
[351023342,1738297845316,-415.97490649,0.00019178,2]
[351023344,1738297845326,-500.0,0.00019178,2]
[351023346,1738297845335,-505.62,0.00019178,2]
[351023348,1738297845345,-519.89587322,0.00019178,2]
[351023350,1738297845354,-500.0,0.00019178,2]
[351023351,1738297845364,-500.0,0.00019178,2]
[351023353,1738297845373,-500.0,0.00019178,2]
[351023355,1738297845382,-500.0,0.00019178,2]
[351023357,1738297845391,-505.82,0.00019178,2]
[351023359,1738297845400,-506.85005139,0.00019178,2]
[351023361,1738297845409,-500.0,0.00019178,2]
[351023363,1738297845419,-523.07869806,0.00019178,2]
[351023365,1738297845428,-515.33060977,0.00019178,2]
[351023367,1738297845437,-628.69,0.00019178,2]
[351023369,1738297845446,-511.95840323,0.00019178,2]
[351023371,1738297845456,-500.0,0.00019178,2]
[351023373,1738297845465,-500.0,0.00019178,2]
[351023375,1738297845474,-502.93311907,0.00019178,2]
[351023377,1738297845484,-500.0,0.00019178,2]
[351023379,1738297845493,-500.0,0.00019178,2]
[351023381,1738297845502,-500.0,0.00019178,2]
[351023382,1738297845511,-500.0,0.00019178,2]
[351023383,1738297845520,-542.49,0.00019178,2]
[351023384,1738297845530,-500.0,0.00019178,2]
[351023385,1738297845539,-1061.3,0.00019178,2]
[351023386,1738297845549,-500.0,0.00019178,2]
[351023387,1738297845558,-500.0,0.00019178,2]
[351023388,1738297845567,-728.85,0.00019178,2]
[351023389,1738297845577,-1099.27,0.00019178,2]
[351023390,1738297845587,-500.0,0.00019178,2]
[351023391,1738297845596,-506.25154653,0.00019178,2]
[351023392,1738297845605,-500.0,0.00019178,2]
[351023393,1738297845615,-500.0,0.00019178,2]
[351023394,1738297845624,-830.65,0.00019178,2]
[351023395,1738297845633,-500.0,0.00019178,2]
[351023397,1738297845644,-500.0,0.00019178,2]
[351023399,1738297845654,-501.54123811,0.00019178,2]
[351023401,1738297845663,-500.0,0.00019178,2]
[351023403,1738297845673,-500.0,0.00019178,2]
[351023405,1738297845683,-522.88930828,0.00019178,2]
[351023407,1738297845692,-500.0,0.00019178,2]
[351023409,1738297845701,-500.0,0.00019178,2]
[351023411,1738297845710,-500.0,0.00019178,2]
[351023413,1738297845719,-500.0,0.00019178,2]
[351023415,1738297845729,-500.0,0.00019178,2]
[351023418,1738297845742,-500.0,0.00019178,2]
[351023420,1738297845752,-581.04,0.00019178,2]
[351023422,1738297845762,-500.0,0.00019178,2]
[351023424,1738297845771,-504.38488611,0.00019178,2]
[351023426,1738297845780,-500.0,0.00019178,2]
[351023428,1738297845790,-500.0,0.00019178,2]
[351023430,1738297845799,-500.0,0.00019178,2]
[351023432,1738297845809,-500.0,0.00019178,2]
[351023434,1738297845819,-500.0,0.00019178,2]
[351023436,1738297845829,-1184.17,0.00019178,2]
[351023438,1738297845840,-500.0,0.00019178,2]
[351023440,1738297845849,-500.0,0.00019178,2]
[351023442,1738297845859,-502.37190607,0.00019178,2]
[351023444,1738297845868,-783.32,0.00019178,2]
[351023446,1738297845877,-500.0,0.00019178,2]
[351023448,1738297845887,-500.0,0.00019178,2]
[351023450,1738297845896,-151.0,0.00019178,2]
[351023452,1738297845906,-151.0,0.00019178,2]
[351023454,1738297845915,-212.81754533,0.00019178,2]
[351023456,1738297845925,-500.0,0.00019178,2]
[351023458,1738297845934,-500.0,0.00019178,2]
[351023460,1738297845944,-534.25,0.00019178,2]
[351023462,1738297845955,-506.21534415,0.00019178,2]
[351023464,1738297845968,-500.0,0.00019178,2]
[351023466,1738297845978,-500.0,0.00019178,2]
[351023468,1738297845988,-500.0,0.00019178,2]
[351023470,1738297845999,-500.0,0.00019178,2]
[351023472,1738297846009,-500.0,0.00019178,2]
[351023474,1738297846018,-151.0,0.00019178,2]
[351023476,1738297846028,-151.483382,0.00019178,2]
[351023478,1738297846038,-500.0,0.00019178,2]
[351023480,1738297846048,-173.26562106,0.00019178,2]
[351023482,1738297846058,-500.0,0.00019178,2]
[351023484,1738297846068,-500.0,0.00019178,2]
[351023486,1738297846078,-500.0,0.00019178,2]
[351023488,1738297846088,-507.495163,0.00019178,2]
[351023490,1738297846097,-500.0,0.00019178,2]
[351023493,1738297846108,-583.29504727,0.00019178,2]
[351023494,1738297846117,-500.0,0.00019178,2]
[351023497,1738297846126,-507.68094335,0.00019178,2]
[351023499,1738297846136,-548.50646261,0.00019178,2]
[351023501,1738297846145,-1029.73,0.00019178,2]
[351023503,1738297846155,-500.0,0.00019178,2]
[351023505,1738297846164,-500.0,0.00019178,2]
[351023507,1738297846173,-500.0,0.00019178,2]
[351023509,1738297846184,-500.0,0.00019178,2]
[351023511,1738297846194,-521.52265798,0.00019178,2]
[351023513,1738297846203,-511.73849686,0.00019178,2]
[351023515,1738297846212,-653.43,0.00019178,2]
[351023517,1738297846222,-500.0,0.00019178,2]
[351023519,1738297846232,-500.0,0.00019178,2]
[351023521,1738297846241,-500.0,0.00019178,2]
[351023523,1738297846252,-618.55,0.00019178,2]
[351023525,1738297846261,-500.0,0.00019178,2]
[351023527,1738297846271,-557.69,0.00019178,2]
[351023529,1738297846280,-500.0,0.00019178,2]
[351023531,1738297846290,-500.0,0.00019178,2]
[351023532,1738297846300,-506.25799688,0.00019178,2]
[351023534,1738297846310,-510.73685927,0.00019178,2]
[351023536,1738297846320,-724.24,0.00019178,2]
[351023538,1738297846330,-500.0,0.00019178,2]
[351023540,1738297846340,-500.0,0.00019178,2]
[351023542,1738297846350,-745.16,0.00019178,2]
[351023544,1738297846359,-500.0,0.00019178,2]
[351023546,1738297846369,-500.0,0.00019178,2]
[351023549,1738297846378,-500.0,0.00019178,2]
[351023550,1738297846388,-500.0,0.00019178,2]
[351023553,1738297846398,-500.0,0.00019178,2]
[351023555,1738297846407,-500.0,0.00019178,2]
[351023557,1738297846417,-500.0,0.00019178,2]
[351023559,1738297846426,-500.0,0.00019178,2]
[351023561,1738297846435,-500.0,0.00019178,2]
[351023563,1738297846445,-500.0,0.00019178,2]
[351023565,1738297846454,-500.0,0.00019178,2]
[351023567,1738297846463,-1504.93,0.00019178,2]
[351023569,1738297846473,-608.08,0.00019178,2]
[351023571,1738297846483,-500.0,0.00019178,2]
[351023574,1738297846492,-520.72012359,0.00019178,2]
[351023576,1738297846502,-500.0,0.00019178,2]
[351023579,1738297846511,-151.0,0.00019178,2]
[351023581,1738297846521,-152.316693,0.00019178,2]
[351023583,1738297846530,-566.91,0.00019178,2]
[351023585,1738297846539,-500.0,0.00019178,2]
[351023587,1738297846549,-500.0,0.00019178,2]
[351023590,1738297846558,-1193.41,0.00019178,2]
[351023592,1738297846569,-500.0,0.00019178,2]